{"text_format":"1","workbook":"xlsx","n_sheets":2,"sheets":["Skjema","Forklaring skjema"],"not_rendered":{"charts":0,"images":2,"macros":0,"external_links":0,"defined_names":0,"comments":1,"pivot_tables":0},"unopened":[],"bounds":{"document_bytes":16777216,"sheet_cells":100000,"rows_first":2000,"rows_last":500,"rows_between":2000,"halvings":0,"cell_chars":16384,"cell_head_chars":4096},"cells_cut":0,"cells_raw":0,"read":"whole","date_system":"1900"}

{"sheet":"Skjema","index":0,"n_rows":14,"n_cols":24,"rows_kept":14,"cut":false,"hidden":false,"merged":[[7,17,7,18],[2,2,2,3]]}
[]
[null,"Risikoområder, vurdering og tiltaksrapport "]
[null,null,"Forklaring utfylling og skala, se neste side"]
[null,"Hendelse #","Risiko-                             område","Uønsket hendelse","Konsekvens/skade-virkning hvis inntreffer (kort beskrivelse)","Sannsynlighet","Konsekvens","Risikograd I","Hendelsestidspunkt","Risikograd II","Påvirknings-mulighet","Tiltak","Ansvar","Frist","Status"]
[null,0,"EKSEMPEL:\nBrann","EKSEMPEL:\nBrann i avfallscontainer","EKSEMPEL:\nKonsekvensen kan være at Lageret brenner ned. \nVi vurderer at sannsynligheten for dette er 1. Hvis det først begynner å brenne i avfallscontaineren, er konsekvensen vurdert til 4. Risikoen er 1*4= 4 (risikograd l). \nDETTE GIR EN RISIKOVURDERING OG ET GRUNNLAG FOR TILTAK SOM ER GODT NOK FOR DE FLESTE.\nEnkelte ønsker å supplere med \"hendelsestidspunkt\" og \"påvirkningsmulighet\" når man skal prioritere tiltak.\nHvis vi også vurdere NÅR dette kan inntreffe (hendelsestidspunkt) til \"Om lang tid fra nå\" = 1 (fordi dette har vi faktisk kontroll på), blir Risikograd ll (Risikograd l* Hendelsestidspunkt), dvs 4 * 1 = 4",1,4,{"$f":"F5*G5","v":4},1,{"$f":"H5*I5","v":4},null,"EKSEMPEL:\nHer bør man vurdere tiltak, siden risikoen er gul. Kanskje er tiltaket: \"Opplæring av nyansatte til ikke å kaste  oljefiller i containeren\"","nn","dd.mm.åå"]
[null,1]
[null,2,null,null,null,null,null,null,null,null,null,null,null,null,null,null,null,null,null,"Konsekvens"]
[null,3,null,null,null,null,null,null,null,null,null,null,null,null,null,null,null,"Sannsynlighet",null,"Lav (Meget liten)","Lav (Meget liten)","Middels (Moderat)","Høy (Meget stor)","Høy (Meget stor)"]
[null,4,null,null,null,null,null,null,null,null,null,null,null,null,null,null,null,null,null,1,2,3,4,5]
[null,5,null,null,null,null,null,null,null,null,null,null,null,null,null,null,null,"Høy (Meget stor)",5,{"$f":"S10*T9","v":5},{"$f":"S10*U9","v":10},{"$f":"S10*V9","v":15},{"$f":"S10*W9","v":20},{"$f":"S10*X9","v":25}]
[null,6,null,null,null,null,null,null,null,null,null,null,null,null,null,null,null,"Høy (Meget stor)",4,{"$f":"S11*T9","v":4},{"$f":"S11*U9","v":8},{"$f":"S11*V9","v":12},{"$f":"S11*W9","v":16},{"$f":"S11*X9","v":20}]
[null,8,null,null,null,null,null,null,null,null,null,null,null,null,null,null,null,"Middels (Moderat)",3,{"$f":"S12*T9","v":3},{"$f":"S12*U9","v":6},{"$f":"S12*V9","v":9},{"$f":"S12*W9","v":12},{"$f":"S12*X9","v":15}]
[null,null,null,null,null,null,null,null,null,null,null,null,null,null,null,null,null,"Lav (Meget liten)",2,{"$f":"S13*T9","v":2},{"$f":"S13*U9","v":4},{"$f":"S13*V9","v":6},{"$f":"S13*W9","v":8},{"$f":"S13*X9","v":10}]
[null,null,null,null,null,null,null,null,null,null,null,null,null,null,null,null,null,"Lav (Meget liten)",1,{"$f":"S14*T9","v":1},{"$f":"S14*U9","v":2},{"$f":"S14*V9","v":3},{"$f":"S14*W9","v":4},{"$f":"S14*X9","v":5}]

{"sheet":"Forklaring skjema","index":1,"n_rows":41,"n_cols":16,"rows_kept":41,"cut":false,"hidden":false,"merged":[[3,1,3,6],[29,9,29,10]]}
[]
[null,"Forklaring til gjennomføring og bruk av risikovurdering og skjema "]
[]
[null,"Innledende tips:\nVelg ut de områdene og de hendelsene som har mest betydning for måloppnåelse i akkurat deres virksomhet.\nBrainstorm om tema/hendelser, gjør risikovurderinger og definer tiltak sammen med dem som kjenner området og/eller kravene godt, har ansvar og kan bidra med erfaring"]
[]
[null,"Risiko = sannsynlighet * konsekvens"]
[]
[null,"Hvilke kategorier/områder/tema er man opptatt av?\nHer må virksomheten selv vurdere hvilke tema man vil dele inn i.\nEksempelvis:\n- HMS (kan igjen deles i Brann, Ergonomi, Hørselskader, Sykefravær, Ytre Miljø, etc) \n- Kvalitet\n- Økonomi\n- Omdømme\netc"]
[]
[null,"Hvilke hendelser kan oppstå som påvirker de kategorier/områder/tema er man opptatt av?\n"]
[null,"Kommentar: Man kan også sette inn positive, ØNSKEDE, hendelser og bruke skjemaet til å vurdere sannsynlighet og effekt, vurdere hvilke hendelser som gir mest effekt, planlegge hvilke tiltak som må gjøres for at denne effekten skal oppnås"]
[]
[null,"Vurdering av risiko:\n\nHvor sannsynlig er det at hendelsen skjer?\nHvis det skjer, hvor stor er påvirkningen/konsekvensen?"]
[null,"Skala når dere vurderer: "]
[null,"Skala sannsynlighet","Meget liten = 1",2,"Moderat \n= 3",4,"Meget stor \n= 5"]
[null,"Skala konsekvens","Meget liten = 1",2,"Moderat \n= 3",4,"Meget stor \n= 5"]
[null,"Skala hendelsestidpunkt/hastegrad\nKommentar: dette er ikke nødvendig å ha med, men kan være aktuelt for noen. Blir da del av det man kan kalle \"Risikograd ll\"","Om lang tid fra nå \n= 1",2,3,4,"Umiddelbart \n= 5"]
[null,"Risikograd l:\nSannsynlighet ganger konsekvens. Regnes ut automatisk","Betinget farge < 4",null,"Betinget farge 4-6",null,"Betinget farge >6"]
[null,"Risikograd ll:\nRisiko (risikograd l) ganger hendelsestidspunkt/hastegrad"]
[null,"Prioritere ut fra de hendelsene som skårer høyest\nDefinere tiltaksplan for dem med høyest skår/høyest risiko","Neglisjerbar",null,"Kritisk",null,"Signifikant"]
[]
[null,"Tiltaksplan:"]
[null,"Tiltak\nHvilke tiltak vil man gjøre for å redusere risiko enten ved:\n1) redusere sannsynligheten for at hendelsen inntreffer \neller\n2) redusere konsekvensen når hendelsen først har oppstått"]
[null,"Ansvar:\nHvem har ansvar for at tiltaket gjennomføres? Skriv inn navn eller initialer (evt roller hvsi man vil ha det uavhengig av hvilken person som har rollen. Eks leder i AMU)\nNoen ønsker også å definere roller:\nH = Hovedansvarlig\nU = Utfører (den som faktisk gjør jobben, kan være flere)\nK = Koordineres med (hvem eller hva må man samkjøre med)\nI = Informeres (hvem bør informeres)"]
[null,"Tidsfrist: \nInnen når skal tiltaket være gjennomført?"]
[null,"Status:\nDet kan være fornuftig å gjennomgå risikoplanen med jevne mellomrom. Spesielt med fokus på de tiltakene som er i gang eller ikke startet enda. ","Utført",null,"I gang",null,"Ikke startet"]
[]
[]
[null,null,null,null,null,null,null,null,null,null,null,"Konsekvens"]
[null,null,null,null,null,null,null,null,null,"Sannsynlighet",null,"Lav (Meget liten)","Lav (Meget liten)","Middels (Moderat)","Høy (Meget stor)","Høy (Meget stor)"]
[null,null,null,null,null,null,null,null,null,null,null,1,2,3,4,5]
[null,null,null,null,null,null,null,null,null,"Høy (Meget stor)",5,{"$f":"K32*L31","v":5},{"$f":"K32*M31","v":10},{"$f":"K32*N31","v":15},{"$f":"K32*O31","v":20},{"$f":"K32*P31","v":25}]
[null,null,null,null,null,null,null,null,null,"Høy (Meget stor)",4,{"$f":"K33*L31","v":4},{"$f":"K33*M31","v":8},{"$f":"K33*N31","v":12},{"$f":"K33*O31","v":16},{"$f":"K33*P31","v":20}]
[null,null,null,null,null,null,null,null,null,"Middels (Moderat)",3,{"$f":"K34*L31","v":3},{"$f":"K34*M31","v":6},{"$f":"K34*N31","v":9},{"$f":"K34*O31","v":12},{"$f":"K34*P31","v":15}]
[null,null,null,null,null,null,null,null,null,"Lav (Meget liten)",2,{"$f":"K35*L31","v":2},{"$f":"K35*M31","v":4},{"$f":"K35*N31","v":6},{"$f":"K35*O31","v":8},{"$f":"K35*P31","v":10}]
[null,null,null,null,null,null,null,null,null,"Lav (Meget liten)",1,{"$f":"K36*L31","v":1},{"$f":"K36*M31","v":2},{"$f":"K36*N31","v":3},{"$f":"K36*O31","v":4},{"$f":"K36*P31","v":5}]
[]
[]
[null,null,null,null,null,null,null,null,null,"Betinget farge < 4"]
[null,null,null,null,null,null,null,null,null,"Betinget farge 4-6"]
[null,null,null,null,null,null,null,null,null,"Betinget farge >6"]